[Event "*** SCC Grand Prix: Titled Tuesday Blitz"]
[Site "Chess.com"]
[Date "2020.07.21"]
[Round "10"]
[White "ErikRonka"]
[Black "BeanScreen"]
[Result "0-1"]
[WhiteElo "2373"]
[BlackElo "2663"]
[TimeControl "180+1"]
[EndTime "11:59:44 PDT"]
[Termination "BeanScreen won on time"]

1. e4 {[%clk 0:03:00.9]} 1... e5 {[%clk 0:02:59.9]} 2. Nc3 {[%clk 0:03:00.1]}
2... Nc6 {[%clk 0:03:00.2]} 3. Bc4 {[%clk 0:02:59.9]} 3... Nf6 {[%clk
0:03:00.5]} 4. d3 {[%clk 0:02:59.1]} 4... Na5 {[%clk 0:03:00.8]} 5. Bb3 {[%clk
0:02:57]} 5... Nxb3 {[%clk 0:03:00.8]} 6. axb3 {[%clk 0:02:57]} 6... d5 {[%clk
0:03:01.2]} 7. exd5 {[%clk 0:02:54.5]} 7... Nxd5 {[%clk 0:03:02.1]} 8. Qh5
{[%clk 0:02:50.4]} 8... Nxc3 {[%clk 0:02:39]} 9. Qxe5+ {[%clk 0:02:41.5]} 9...
Be7 {[%clk 0:02:39.6]} 10. bxc3 {[%clk 0:02:30]} 10... O-O {[%clk 0:02:39.5]}
11. Qd4 {[%clk 0:02:26.3]} 11... Bd7 {[%clk 0:02:29]} 12. Ne2 {[%clk 0:02:23.1]}
12... Bf6 {[%clk 0:02:27.8]} 13. Qc4 {[%clk 0:02:13.9]} 13... Re8 {[%clk
0:02:27.4]} 14. Be3 {[%clk 0:02:13.5]} 14... Bg5 {[%clk 0:01:46.3]} 15. O-O
{[%clk 0:01:56.1]} 15... Bc6 {[%clk 0:01:28.5]} 16. Bxg5 {[%clk 0:01:50.3]}
16... Qxg5 {[%clk 0:01:29.4]} 17. Ng3 {[%clk 0:01:49.9]} 17... Re2 {[%clk
0:01:13.9]} 18. Qd4 {[%clk 0:00:43.4]} 18... a6 {[%clk 0:01:04]} 19. h4 {[%clk
0:00:21.9]} 19... Qg6 {[%clk 0:01:04]} 20. h5 {[%clk 0:00:19.1]} 20... Qg5
{[%clk 0:01:03.9]} 21. h6 {[%clk 0:00:18.8]} 21... gxh6 {[%clk 0:00:57.5]} 22.
Rae1 {[%clk 0:00:18.8]} 22... Rae8 {[%clk 0:00:57]} 23. Rxe2 {[%clk 0:00:17.8]}
23... Rxe2 {[%clk 0:00:57.2]} 24. Ne4 {[%clk 0:00:09.9]} 24... Qg6 {[%clk
0:00:50.5]} 25. Nf6+ {[%clk 0:00:09.1]} 25... Kf8 {[%clk 0:00:48.8]} 26. g3
{[%clk 0:00:07]} 26... Qf5 {[%clk 0:00:31.2]} 27. Qd8+ {[%clk 0:00:04.5]} 27...
Kg7 {[%clk 0:00:31.4]} 28. Ne4 {[%clk 0:00:04.9]} 28... Qf3 {[%clk 0:00:21.6]}
29. Qxc7 {[%clk 0:00:04.3]} 29... Rxe4 {[%clk 0:00:21.3]} 30. dxe4 {[%clk
0:00:04.3]} 30... Bxe4 {[%clk 0:00:21.7]} 31. Qe5+ {[%clk 0:00:04.8]} 31... Kg6
{[%clk 0:00:18.1]} 32. Qd6+ {[%clk 0:00:04.9]} 32... f6 {[%clk 0:00:18.5]} 0-1

[Event "*** SCC Grand Prix: Titled Tuesday Blitz"]
[Site "Chess.com"]
[Date "2020.07.21"]
[Round "10"]
[White "killer311"]
[Black "Th3_Hound"]
[Result "0-1"]
[WhiteElo "2413"]
[BlackElo "2603"]
[TimeControl "180+1"]
[EndTime "11:59:45 PDT"]
[Termination "Th3_Hound won by resignation"]

1. d4 {[%clk 0:03:00.9]} 1... Nf6 {[%clk 0:03:00]} 2. c4 {[%clk 0:02:59.6]} 2...
g6 {[%clk 0:03:00.5]} 3. g3 {[%clk 0:03:00]} 3... d5 {[%clk 0:03:00.1]} 4. Bg2
{[%clk 0:03:00.9]} 4... Bg7 {[%clk 0:03:00.1]} 5. Nf3 {[%clk 0:03:01.1]} 5...
O-O {[%clk 0:03:00]} 6. O-O {[%clk 0:03:01.1]} 6... dxc4 {[%clk 0:03:00.6]} 7.
Na3 {[%clk 0:03:01.3]} 7... c3 {[%clk 0:03:01.3]} 8. bxc3 {[%clk 0:03:02.1]}
8... c5 {[%clk 0:03:01.6]} 9. Bb2 {[%clk 0:03:02]} 9... Nc6 {[%clk 0:03:01.8]}
10. Rc1 {[%clk 0:02:55.4]} 10... Bf5 {[%clk 0:03:01.3]} 11. Nc4 {[%clk
0:02:48.8]} 11... Qc7 {[%clk 0:02:52.9]} 12. Nce5 {[%clk 0:02:41.5]} 12... Rad8
{[%clk 0:02:40.6]} 13. Qa4 {[%clk 0:02:37.4]} 13... Ne4 {[%clk 0:02:27.7]} 14.
Nxc6 {[%clk 0:02:31.8]} 14... bxc6 {[%clk 0:02:27.2]} 15. Nh4 {[%clk 0:02:26.8]}
15... Rb8 {[%clk 0:02:11.5]} 16. Ba3 {[%clk 0:02:13.8]} 16... Nd6 {[%clk
0:01:54.7]} 17. Bxc5 {[%clk 0:02:07.9]} 17... Bd7 {[%clk 0:01:52.3]} 18. Rb1
{[%clk 0:01:50.1]} 18... Rfe8 {[%clk 0:01:50.4]} 19. Qxa7 {[%clk 0:01:29.9]}
19... Qxa7 {[%clk 0:01:47.7]} 20. Bxa7 {[%clk 0:01:30.8]} 20... Ra8 {[%clk
0:01:48.2]} 21. Bc5 {[%clk 0:01:30.9]} 21... Rxa2 {[%clk 0:01:48.2]} 22. e4
{[%clk 0:01:29.7]} 22... g5 {[%clk 0:01:45.2]} 23. e5 {[%clk 0:01:21]} 23... Nb5
{[%clk 0:01:40.4]} 24. Nf3 {[%clk 0:01:17.2]} 24... Nxc3 {[%clk 0:01:40.5]} 25.
Rb7 {[%clk 0:01:16.3]} 25... Bc8 {[%clk 0:01:23]} 26. Rxe7 {[%clk 0:01:14.7]}
26... Rxe7 {[%clk 0:01:21.4]} 27. Bxe7 {[%clk 0:01:15.6]} 27... h6 {[%clk
0:01:21.2]} 28. h3 {[%clk 0:01:06.5]} 28... Ba6 {[%clk 0:01:20.9]} 29. Re1
{[%clk 0:01:02.3]} 29... Bf8 {[%clk 0:01:17.6]} 30. Bxf8 {[%clk 0:00:59.9]}
30... Kxf8 {[%clk 0:01:18.5]} 31. e6 {[%clk 0:00:59.5]} 31... Ne2+ {[%clk
0:01:15.6]} 32. Kh2 {[%clk 0:00:59]} 32... fxe6 {[%clk 0:01:15.8]} 33. Ne5
{[%clk 0:00:58.5]} 33... Nxd4 {[%clk 0:01:15.3]} 34. Rd1 {[%clk 0:00:49.7]}
34... Nf5 {[%clk 0:00:56.4]} 35. Nxc6 {[%clk 0:00:44.9]} 35... Rxf2 {[%clk
0:00:54.8]} 36. Rd8+ {[%clk 0:00:45.3]} 36... Kg7 {[%clk 0:00:52.7]} 37. Rd7+
{[%clk 0:00:41.2]} 37... Kf6 {[%clk 0:00:51.3]} 38. Kg1 {[%clk 0:00:32.6]} 38...
Rc2 {[%clk 0:00:48.4]} 39. Nb4 {[%clk 0:00:30.8]} 39... Rc1+ {[%clk 0:00:45.1]}
40. Kh2 {[%clk 0:00:31.2]} 40... Bb5 {[%clk 0:00:43.8]} 41. Rb7 {[%clk
0:00:28.9]} 41... Be2 {[%clk 0:00:41.2]} 42. g4 {[%clk 0:00:27.8]} 42... Nh4
{[%clk 0:00:40.9]} 43. Be4 {[%clk 0:00:25.1]} 43... Rd1 {[%clk 0:00:38.1]} 44.
Nc2 {[%clk 0:00:24.1]} 44... Rd2 {[%clk 0:00:38.1]} 45. Kh1 {[%clk 0:00:23.4]}
45... Bf3+ {[%clk 0:00:36.8]} 46. Bxf3 {[%clk 0:00:21.4]} 46... Nxf3 {[%clk
0:00:37.7]} 0-1

[Event "*** SCC Grand Prix: Titled Tuesday Blitz"]
[Site "Chess.com"]
[Date "2020.07.21"]
[Round "10"]
[White "Gorin_Leonid"]
[Black "Vladislav_Chizhikov"]
[Result "1-0"]
[WhiteElo "2590"]
[BlackElo "2445"]
[TimeControl "180+1"]
[EndTime "11:59:45 PDT"]
[Termination "Gorin_Leonid won by checkmate"]

1. e4 {[%clk 0:03:00.9]} 1... e6 {[%clk 0:02:59.5]} 2. d4 {[%clk 0:03:00.2]}
2... d5 {[%clk 0:02:59.9]} 3. Nd2 {[%clk 0:03:00.3]} 3... dxe4 {[%clk
0:02:59.7]} 4. Nxe4 {[%clk 0:03:00.4]} 4... Nd7 {[%clk 0:03:00.6]} 5. Nf3 {[%clk
0:03:00.3]} 5... Ngf6 {[%clk 0:03:01.1]} 6. Nxf6+ {[%clk 0:03:00.5]} 6... Nxf6
{[%clk 0:03:02]} 7. g3 {[%clk 0:03:00.9]} 7... c5 {[%clk 0:03:00.8]} 8. Bg2
{[%clk 0:03:00.9]} 8... cxd4 {[%clk 0:02:59.3]} 9. Qxd4 {[%clk 0:03:00.9]} 9...
Qxd4 {[%clk 0:02:56.8]} 10. Nxd4 {[%clk 0:03:00.9]} 10... a6 {[%clk 0:02:57]}
11. c4 {[%clk 0:03:00.8]} 11... Bb4+ {[%clk 0:02:56.2]} 12. Bd2 {[%clk
0:03:00.9]} 12... Bxd2+ {[%clk 0:02:55.5]} 13. Kxd2 {[%clk 0:03:01.4]} 13... Ke7
{[%clk 0:02:55.4]} 14. Kc3 {[%clk 0:03:00.9]} 14... Rd8 {[%clk 0:02:52.5]} 15.
Rad1 {[%clk 0:03:00.1]} 15... Ng4 {[%clk 0:02:51.7]} 16. f4 {[%clk 0:02:40.5]}
16... Nf2 {[%clk 0:02:43.9]} 17. Rhe1 {[%clk 0:02:34.5]} 17... Nxd1+ {[%clk
0:02:43.1]} 18. Rxd1 {[%clk 0:02:34.6]} 18... Rb8 {[%clk 0:02:42.2]} 19. b4
{[%clk 0:02:34]} 19... Bd7 {[%clk 0:02:41.8]} 20. Kb3 {[%clk 0:02:28.3]} 20...
b6 {[%clk 0:02:36.6]} 21. a4 {[%clk 0:02:27]} 21... Rbc8 {[%clk 0:02:33.9]} 22.
b5 {[%clk 0:02:25.6]} 22... axb5 {[%clk 0:02:33]} 23. axb5 {[%clk 0:02:25.7]}
23... Rc5 {[%clk 0:02:29.5]} 24. Ra1 {[%clk 0:02:12.3]} 24... e5 {[%clk
0:02:21.5]} 25. fxe5 {[%clk 0:02:08.2]} 25... Rxe5 {[%clk 0:02:22.4]} 26. Ra7
{[%clk 0:02:06]} 26... Kd6 {[%clk 0:02:17.6]} 27. Kb4 {[%clk 0:01:58.3]} 27...
Re1 {[%clk 0:02:14.6]} 28. Rb7 {[%clk 0:01:52.1]} 28... Rb1+ {[%clk 0:02:14.2]}
29. Kc3 {[%clk 0:01:51.3]} 29... Be8 {[%clk 0:01:58.3]} 30. Nb3 {[%clk
0:01:43.7]} 30... Rg1 {[%clk 0:01:42.1]} 31. Bd5 {[%clk 0:01:42.7]} 31... Ke5
{[%clk 0:01:29.5]} 32. Rxb6 {[%clk 0:01:40.8]} 32... f5 {[%clk 0:01:26.8]} 33.
Nc5 {[%clk 0:01:38.7]} 33... Rc1+ {[%clk 0:01:20.5]} 34. Kb4 {[%clk 0:01:27.9]}
34... Rb1+ {[%clk 0:01:16.4]} 35. Nb3 {[%clk 0:01:26.9]} 35... Bd7 {[%clk
0:01:14.5]} 36. Kc3 {[%clk 0:01:20.4]} 36... g5 {[%clk 0:01:14.1]} 37. Nc5
{[%clk 0:01:20]} 37... Rc1+ {[%clk 0:01:10.4]} 38. Kd2 {[%clk 0:01:18.6]} 38...
Ra1 {[%clk 0:01:02.3]} 39. Kd3 {[%clk 0:01:13.3]} 39... Ra3+ {[%clk 0:01:00.5]}
40. Kc2 {[%clk 0:01:12.6]} 40... f4 {[%clk 0:00:56.1]} 41. gxf4+ {[%clk
0:01:05.5]} 41... gxf4 {[%clk 0:00:55.6]} 42. Nd3+ {[%clk 0:01:05.4]} 42... Kd4
{[%clk 0:00:54.4]} 43. Nxf4 {[%clk 0:01:04.7]} 43... Bf5+ {[%clk 0:00:53.2]} 44.
Kb2 {[%clk 0:01:03.7]} 44... Re3 {[%clk 0:00:46.5]} 45. Rf6 {[%clk 0:00:58.4]}
45... Bg4 {[%clk 0:00:40.7]} 46. b6 {[%clk 0:00:51.2]} 46... h5 {[%clk
0:00:24.2]} 47. b7 {[%clk 0:00:51.2]} 47... Rb8 {[%clk 0:00:24.1]} 48. Rf7
{[%clk 0:00:47.5]} 48... Kc5 {[%clk 0:00:23.1]} 49. Kc2 {[%clk 0:00:43.4]} 49...
h4 {[%clk 0:00:21.5]} 50. Nd3+ {[%clk 0:00:43.2]} 50... Kd4 {[%clk 0:00:20.7]}
51. Rf4+ {[%clk 0:00:41.7]} 51... Re4 {[%clk 0:00:18.4]} 52. Rxe4# {[%clk
0:00:41.4]} 1-0

[Event "*** SCC Grand Prix: Titled Tuesday Blitz"]
[Site "Chess.com"]
[Date "2020.07.21"]
[Round "10"]
[White "Chessdemon2019"]
[Black "JesseKraai"]
[Result "0-1"]
[WhiteElo "2372"]
[BlackElo "2528"]
[TimeControl "180+1"]
[EndTime "11:59:46 PDT"]
[Termination "JesseKraai won on time"]

1. e4 {[%clk 0:03:00.9]} 1... d6 {[%clk 0:02:59.4]} 2. d4 {[%clk 0:03:00.6]}
2... Nf6 {[%clk 0:02:59.5]} 3. Nc3 {[%clk 0:03:00.2]} 3... e5 {[%clk 0:02:58.1]}
4. Nf3 {[%clk 0:02:58]} 4... Nbd7 {[%clk 0:02:57.8]} 5. Bc4 {[%clk 0:02:55.9]}
5... Be7 {[%clk 0:02:58]} 6. O-O {[%clk 0:02:54.5]} 6... c6 {[%clk 0:02:58.3]}
7. h3 {[%clk 0:02:46.3]} 7... b5 {[%clk 0:02:56.4]} 8. Bb3 {[%clk 0:02:46.1]}
8... Bb7 {[%clk 0:02:55.6]} 9. a3 {[%clk 0:02:44.8]} 9... O-O {[%clk 0:02:54.9]}
10. Re1 {[%clk 0:02:42.5]} 10... Qc7 {[%clk 0:02:54.2]} 11. Nh4 {[%clk
0:02:35.2]} 11... g6 {[%clk 0:02:53.3]} 12. Bh6 {[%clk 0:02:34.5]} 12... Rfe8
{[%clk 0:02:52.7]} 13. Nf3 {[%clk 0:02:33.9]} 13... a6 {[%clk 0:02:51.3]} 14.
Ng5 {[%clk 0:02:33.9]} 14... d5 {[%clk 0:02:43.9]} 15. exd5 {[%clk 0:02:31.9]}
15... cxd5 {[%clk 0:02:41.8]} 16. dxe5 {[%clk 0:02:30.4]} 16... Nxe5 {[%clk
0:02:41.5]} 17. Qd4 {[%clk 0:02:08.4]} 17... Nc4 {[%clk 0:02:22.1]} 18. Bxc4
{[%clk 0:01:31.2]} 18... dxc4 {[%clk 0:02:17.2]} 19. Nce4 {[%clk 0:01:24.5]}
19... Qc6 {[%clk 0:01:59.4]} 20. f3 {[%clk 0:00:42.8]} 20... Rad8 {[%clk
0:01:49.7]} 21. Qc3 {[%clk 0:00:42.5]} 21... Qb6+ {[%clk 0:01:35.2]} 22. Kh1
{[%clk 0:00:41.6]} 22... a5 {[%clk 0:01:33]} 23. b4 {[%clk 0:00:28.9]} 23...
axb4 {[%clk 0:01:14.6]} 24. axb4 {[%clk 0:00:28.6]} 24... Nh5 {[%clk 0:01:04.7]}
25. g4 {[%clk 0:00:17.2]} 25... Bf6 {[%clk 0:00:49.9]} 26. Nxf6+ {[%clk
0:00:14.2]} 26... Qxf6 {[%clk 0:00:49.3]} 27. Qxf6 {[%clk 0:00:13]} 27... Nxf6
{[%clk 0:00:49.1]} 28. Rxe8+ {[%clk 0:00:12.2]} 28... Rxe8 {[%clk 0:00:47.6]}
29. Ra7 {[%clk 0:00:11.8]} 29... Re7 {[%clk 0:00:45.2]} 30. Ne4 {[%clk
0:00:09.2]} 30... Nxe4 {[%clk 0:00:42.2]} 31. Kg2 {[%clk 0:00:06.7]} 31... Nd6
{[%clk 0:00:35.9]} 32. Bg5 {[%clk 0:00:05.3]} 32... Rd7 {[%clk 0:00:35.3]} 33.
Bf6 {[%clk 0:00:05.7]} 33... Nc8 {[%clk 0:00:33.7]} 34. Ra1 {[%clk 0:00:04.7]}
34... Ne7 {[%clk 0:00:33.1]} 35. Re1 {[%clk 0:00:03.6]} 35... Kf8 {[%clk
0:00:33.4]} 36. Kg3 {[%clk 0:00:03.2]} 36... Nd5 {[%clk 0:00:33.5]} 37. Bg5
{[%clk 0:00:03.3]} 37... f6 {[%clk 0:00:33.3]} 38. Bh6+ {[%clk 0:00:03.8]} 38...
Kf7 {[%clk 0:00:33.8]} 39. h4 {[%clk 0:00:03.3]} 39... Nxb4 {[%clk 0:00:33.2]}
40. h5 {[%clk 0:00:03.7]} 40... Nxc2 {[%clk 0:00:32.2]} 41. hxg6+ {[%clk
0:00:03.8]} 41... Kxg6 {[%clk 0:00:30.9]} 42. Rh1 {[%clk 0:00:03.6]} 42... Rd3
{[%clk 0:00:31]} 43. Bf4 {[%clk 0:00:01.1]} 43... Rxf3+ {[%clk 0:00:30.5]} 44.
Kg2 {[%clk 0:00:01.9]} 44... Rxf4+ {[%clk 0:00:30.8]} 0-1

[Event "*** SCC Grand Prix: Titled Tuesday Blitz"]
[Site "Chess.com"]
[Date "2020.07.21"]
[Round "10"]
[White "qingaunlee"]
[Black "benko_008"]
[Result "0-1"]
[WhiteElo "2338"]
[BlackElo "2434"]
[TimeControl "180+1"]
[EndTime "11:59:47 PDT"]
[Termination "benko_008 won by resignation"]

1. e4 {[%clk 0:03:00.9]} 1... c5 {[%clk 0:02:59.2]} 2. Nf3 {[%clk 0:03:00.3]}
2... e6 {[%clk 0:02:59.4]} 3. d4 {[%clk 0:03:01.2]} 3... cxd4 {[%clk 0:02:59.6]}
4. Nxd4 {[%clk 0:03:02.1]} 4... a6 {[%clk 0:03:00.1]} 5. Bd3 {[%clk 0:03:01.8]}
5... d6 {[%clk 0:03:00.2]} 6. O-O {[%clk 0:03:01.2]} 6... Nf6 {[%clk 0:03:00.8]}
7. c4 {[%clk 0:03:01.5]} 7... b6 {[%clk 0:03:00.8]} 8. Nc3 {[%clk 0:03:00.9]}
8... Bb7 {[%clk 0:03:00.9]} 9. Be3 {[%clk 0:02:58.7]} 9... g6 {[%clk 0:02:59.6]}
10. f4 {[%clk 0:02:58]} 10... Bg7 {[%clk 0:02:59.1]} 11. f5 {[%clk 0:02:49]}
11... Qe7 {[%clk 0:02:57.9]} 12. Qe2 {[%clk 0:02:34.1]} 12... Nbd7 {[%clk
0:02:55.6]} 13. Rae1 {[%clk 0:02:31.3]} 13... O-O {[%clk 0:02:53.5]} 14. Bc2
{[%clk 0:02:25.9]} 14... Ne5 {[%clk 0:02:52.7]} 15. h3 {[%clk 0:02:24.7]} 15...
Rac8 {[%clk 0:02:22.3]} 16. b3 {[%clk 0:02:20]} 16... b5 {[%clk 0:02:17.7]} 17.
Bd3 {[%clk 0:02:06.8]} 17... Nxd3 {[%clk 0:02:14.6]} 18. Qxd3 {[%clk 0:02:06.7]}
18... bxc4 {[%clk 0:02:14.7]} 19. bxc4 {[%clk 0:02:07.6]} 19... Nd7 {[%clk
0:02:13.8]} 20. Nf3 {[%clk 0:01:44]} 20... Nc5 {[%clk 0:02:04.5]} 21. Bxc5
{[%clk 0:01:43.2]} 21... Rxc5 {[%clk 0:02:04.4]} 22. Na4 {[%clk 0:01:38.7]}
22... Ra5 {[%clk 0:01:56.4]} 23. Qb3 {[%clk 0:01:24.4]} 23... Qc7 {[%clk
0:01:32]} 24. fxe6 {[%clk 0:01:00.8]} 24... fxe6 {[%clk 0:01:31.1]} 25. c5
{[%clk 0:01:01.2]} 25... d5 {[%clk 0:01:25.2]} 26. e5 {[%clk 0:00:54.7]} 26...
Rb5 {[%clk 0:01:17.5]} 27. Qc3 {[%clk 0:00:48]} 27... Ra5 {[%clk 0:01:09.4]} 28.
Qb4 {[%clk 0:00:37.4]} 28... Bc6 {[%clk 0:01:08.3]} 29. Nb6 {[%clk 0:00:35.9]}
29... Rb5 {[%clk 0:01:08]} 30. Qc3 {[%clk 0:00:33.7]} 30... Be8 {[%clk
0:01:01.7]} 31. Rc1 {[%clk 0:00:33]} 31... Bh6 {[%clk 0:00:58.1]} 32. Rc2 {[%clk
0:00:31.3]} 32... Rf4 {[%clk 0:00:41.9]} 33. Nd4 {[%clk 0:00:20.4]} 33... Re4
{[%clk 0:00:29.7]} 34. Nxb5 {[%clk 0:00:19.3]} 34... axb5 {[%clk 0:00:30.6]} 35.
Qf3 {[%clk 0:00:17.9]} 35... b4 {[%clk 0:00:25.3]} 36. Rcf2 {[%clk 0:00:16.6]}
36... Rf4 {[%clk 0:00:25]} 37. Qe3 {[%clk 0:00:15.2]} 37... Rxf2 {[%clk
0:00:21.8]} 38. Qxf2 {[%clk 0:00:15.4]} 38... Bb5 {[%clk 0:00:21.1]} 39. Re1
{[%clk 0:00:14.6]} 39... Bf8 {[%clk 0:00:18.4]} 40. Qd4 {[%clk 0:00:12.5]} 40...
Bxc5 {[%clk 0:00:17.4]} 0-1

[Event "*** SCC Grand Prix: Titled Tuesday Blitz"]
[Site "Chess.com"]
[Date "2020.07.21"]
[Round "10"]
[White "VALPARAISO37"]
[Black "SanchezKelvin"]
[Result "1-0"]
[WhiteElo "2293"]
[BlackElo "2382"]
[TimeControl "180+1"]
[EndTime "11:59:47 PDT"]
[Termination "VALPARAISO37 won on time"]

1. d4 {[%clk 0:03:00.9]} 1... d5 {[%clk 0:02:39.6]} 2. c4 {[%clk 0:02:58]} 2...
c6 {[%clk 0:02:28.6]} 3. Nc3 {[%clk 0:02:57.3]} 3... Nf6 {[%clk 0:02:24.2]} 4.
e3 {[%clk 0:02:57]} 4... Bg4 {[%clk 0:02:23.1]} 5. f3 {[%clk 0:02:55.5]} 5...
Bh5 {[%clk 0:02:14]} 6. g4 {[%clk 0:02:55.6]} 6... Bg6 {[%clk 0:02:13.7]} 7. h4
{[%clk 0:02:56.2]} 7... h5 {[%clk 0:02:12.7]} 8. g5 {[%clk 0:02:56.4]} 8... Ng8
{[%clk 0:02:12.1]} 9. cxd5 {[%clk 0:02:57]} 9... cxd5 {[%clk 0:02:03.5]} 10. Qb3
{[%clk 0:02:57.1]} 10... Nc6 {[%clk 0:02:03]} 11. Qxb7 {[%clk 0:02:55.9]} 11...
Qc8 {[%clk 0:01:58.5]} 12. Ba6 {[%clk 0:02:54.5]} 12... Nb4 {[%clk 0:01:47.7]}
13. Qb5+ {[%clk 0:02:46.8]} 13... Qc6 {[%clk 0:01:46.1]} 14. Qxc6+ {[%clk
0:02:46.2]} 14... Nxc6 {[%clk 0:01:45.1]} 15. Bb7 {[%clk 0:02:46.5]} 15... Nb4
{[%clk 0:01:45.1]} 16. Bxa8 {[%clk 0:02:46.7]} 16... Nc2+ {[%clk 0:01:44.3]} 17.
Kd1 {[%clk 0:02:47.3]} 17... Nxa1 {[%clk 0:01:44.7]} 18. Bxd5 {[%clk 0:02:44.7]}
18... Nc2 {[%clk 0:01:43.5]} 19. a3 {[%clk 0:02:44.1]} 19... e5 {[%clk
0:01:39.3]} 20. Bc6+ {[%clk 0:02:43.8]} 20... Kd8 {[%clk 0:01:38.7]} 21. dxe5
{[%clk 0:02:40.1]} 21... Bc5 {[%clk 0:01:37.7]} 22. Ke2 {[%clk 0:02:31.6]} 22...
Ne7 {[%clk 0:01:34.1]} 23. Ba4 {[%clk 0:02:28.9]} 23... Nf5 {[%clk 0:01:28.5]}
24. Ne4 {[%clk 0:02:19.1]} 24... Bxe3 {[%clk 0:01:19.5]} 25. Bxc2 {[%clk
0:02:14.4]} 25... Bxc1 {[%clk 0:01:18.5]} 26. Nh3 {[%clk 0:02:07.1]} 26... Bxb2
{[%clk 0:01:08.6]} 27. Nf4 {[%clk 0:02:07]} 27... Nd4+ {[%clk 0:01:05.5]} 28.
Kd3 {[%clk 0:02:04]} 28... Bxe4+ {[%clk 0:01:02.7]} 29. fxe4 {[%clk 0:02:00]}
29... Nxc2 {[%clk 0:01:02.5]} 30. Kxc2 {[%clk 0:01:58.6]} 30... Bxe5 {[%clk
0:01:03]} 31. Nd3 {[%clk 0:01:53.4]} 31... Bd6 {[%clk 0:01:03]} 32. Rd1 {[%clk
0:01:47.8]} 32... Ke7 {[%clk 0:01:01.6]} 33. Rb1 {[%clk 0:01:41.1]} 33... Rc8+
{[%clk 0:00:57.5]} 34. Kd2 {[%clk 0:01:39]} 34... Rc7 {[%clk 0:00:51.4]} 35. a4
{[%clk 0:01:31]} 35... Bg3 {[%clk 0:00:49.9]} 36. Rh1 {[%clk 0:01:28]} 36... Rc4
{[%clk 0:00:46.1]} 37. Rb1 {[%clk 0:01:21.7]} 37... Bxh4 {[%clk 0:00:30.8]} 38.
Rb7+ {[%clk 0:01:21.8]} 38... Kd8 {[%clk 0:00:30.9]} 39. Rxf7 {[%clk 0:01:03.1]}
39... Bxg5+ {[%clk 0:00:29.5]} 40. Kd1 {[%clk 0:01:02.8]} 40... Bh6 {[%clk
0:00:17.7]} 41. Rxa7 {[%clk 0:01:00.9]} 41... h4 {[%clk 0:00:17.5]} 42. Nf2
{[%clk 0:00:58.2]} 42... Kc8 {[%clk 0:00:12.3]} 43. a5 {[%clk 0:00:57.5]} 43...
Kb8 {[%clk 0:00:12.2]} 44. Ra6 {[%clk 0:00:51.9]} 44... Ra4 {[%clk 0:00:12]} 45.
Rb6+ {[%clk 0:00:50]} 45... Kc7 {[%clk 0:00:10]} 46. Rb5 {[%clk 0:00:49.2]}
46... Ra2 {[%clk 0:00:08.9]} 47. Rf5 {[%clk 0:00:44.9]} 47... g5 {[%clk
0:00:05.9]} 48. Rf7+ {[%clk 0:00:43.2]} 1-0

[Event "*** SCC Grand Prix: Titled Tuesday Blitz"]
[Site "Chess.com"]
[Date "2020.07.21"]
[Round "10"]
[White "IMHansNiemann"]
[Black "MiroVlasenko"]
[Result "0-1"]
[WhiteElo "2943"]
[BlackElo "2755"]
[TimeControl "180+1"]
[EndTime "11:59:49 PDT"]
[Termination "MiroVlasenko won by resignation"]

1. d4 {[%clk 0:03:00.9]} 1... Nc6 {[%clk 0:03:00.9]} 2. Nf3 {[%clk 0:02:54.4]}
2... d6 {[%clk 0:03:00.8]} 3. e4 {[%clk 0:02:53.3]} 3... Nf6 {[%clk 0:03:00.5]}
4. d5 {[%clk 0:02:51.5]} 4... Ne5 {[%clk 0:02:59.5]} 5. Nxe5 {[%clk 0:02:51]}
5... dxe5 {[%clk 0:03:00.4]} 6. Nc3 {[%clk 0:02:51.5]} 6... e6 {[%clk
0:03:00.3]} 7. Bb5+ {[%clk 0:02:47.4]} 7... Bd7 {[%clk 0:02:59.6]} 8. dxe6
{[%clk 0:02:45.1]} 8... fxe6 {[%clk 0:03:00.5]} 9. Bxd7+ {[%clk 0:02:29.7]} 9...
Qxd7 {[%clk 0:02:58.2]} 10. Qxd7+ {[%clk 0:02:24.4]} 10... Nxd7 {[%clk
0:02:58.2]} 11. Bd2 {[%clk 0:02:23.3]} 11... Bc5 {[%clk 0:02:55.8]} 12. Ke2
{[%clk 0:02:21.4]} 12... Ke7 {[%clk 0:02:45.3]} 13. Rad1 {[%clk 0:02:18.9]}
13... Rhd8 {[%clk 0:02:39.4]} 14. f3 {[%clk 0:02:11.6]} 14... h6 {[%clk
0:02:36.7]} 15. Na4 {[%clk 0:02:10.1]} 15... Bd6 {[%clk 0:02:34.9]} 16. b3
{[%clk 0:02:09.2]} 16... b5 {[%clk 0:02:32.5]} 17. Nb2 {[%clk 0:02:09.1]} 17...
c6 {[%clk 0:02:31.7]} 18. Be3 {[%clk 0:02:07.9]} 18... a5 {[%clk 0:02:23.4]} 19.
a4 {[%clk 0:02:02.9]} 19... Rab8 {[%clk 0:02:13.1]} 20. Ra1 {[%clk 0:01:59.6]}
20... Bb4 {[%clk 0:02:12.9]} 21. Nd3 {[%clk 0:01:57]} 21... Bc3 {[%clk
0:02:11.3]} 22. Rab1 {[%clk 0:01:47.5]} 22... Kf6 {[%clk 0:02:06.7]} 23. Rhd1
{[%clk 0:01:44.7]} 23... Bd4 {[%clk 0:01:46.1]} 24. Bd2 {[%clk 0:01:42.6]} 24...
b4 {[%clk 0:01:42.8]} 25. Be3 {[%clk 0:01:38.2]} 25... c5 {[%clk 0:01:37.4]} 26.
g3 {[%clk 0:01:31.8]} 26... Nb6 {[%clk 0:01:35.9]} 27. Nxc5 {[%clk 0:01:20.9]}
27... Rdc8 {[%clk 0:01:33.9]} 28. Bxd4 {[%clk 0:01:11.5]} 28... exd4 {[%clk
0:01:32.2]} 29. Nd3 {[%clk 0:01:10.8]} 29... Rxc2+ {[%clk 0:01:29.8]} 30. Rd2
{[%clk 0:01:10.6]} 30... Rbc8 {[%clk 0:01:26.1]} 31. f4 {[%clk 0:01:08.7]} 31...
R8c3 {[%clk 0:01:18]} 32. Ne5 {[%clk 0:01:04]} 32... h5 {[%clk 0:01:02.7]} 33.
Rxc2 {[%clk 0:00:48.5]} 33... Rxc2+ {[%clk 0:01:02.7]} 34. Kd3 {[%clk
0:00:49.2]} 34... Rxh2 {[%clk 0:01:02.7]} 35. Kxd4 {[%clk 0:00:49.5]} 35... Rg2
{[%clk 0:01:01.9]} 36. Kc5 {[%clk 0:00:48.3]} 36... Nc8 {[%clk 0:01:02]} 37. Kb5
{[%clk 0:00:45.8]} 37... Rxg3 {[%clk 0:01:01.7]} 38. Kxa5 {[%clk 0:00:35.5]}
38... g5 {[%clk 0:01:01.5]} 39. Nc4 {[%clk 0:00:28.1]} 39... gxf4 {[%clk
0:00:58.6]} 40. Kxb4 {[%clk 0:00:28.3]} 40... h4 {[%clk 0:00:57]} 41. a5 {[%clk
0:00:24.8]} 41... h3 {[%clk 0:00:57.2]} 42. Rh1 {[%clk 0:00:23.8]} 42... Kg5
{[%clk 0:00:55.4]} 43. Ne5 {[%clk 0:00:20.5]} 43... Re3 {[%clk 0:00:55]} 44. Kc5
{[%clk 0:00:17.3]} 44... Rxb3 {[%clk 0:00:53.9]} 45. a6 {[%clk 0:00:17]} 45...
Ra3 {[%clk 0:00:52.4]} 46. Kb5 {[%clk 0:00:17.4]} 46... Kh4 {[%clk 0:00:52.7]}
47. Rg1 {[%clk 0:00:16.3]} 47... Nd6+ {[%clk 0:00:50.3]} 48. Kc6 {[%clk
0:00:14.7]} 48... Rxa6+ {[%clk 0:00:48.5]} 49. Kc5 {[%clk 0:00:15.2]} 49...
Nxe4+ {[%clk 0:00:48.3]} 50. Kd4 {[%clk 0:00:15.7]} 50... Ng3 {[%clk 0:00:47.8]}
51. Ng6+ {[%clk 0:00:12.5]} 51... Kg4 {[%clk 0:00:43.8]} 52. Ne5+ {[%clk
0:00:13.1]} 52... Kf5 {[%clk 0:00:43.4]} 53. Nf3 {[%clk 0:00:13.6]} 53... Ra3
{[%clk 0:00:42.6]} 0-1